Workbook

Sheet Canaleta de concreto polímero
A1: PLANILHA DE CÁLCULO - CANALETA RD
A2: km | C2: POSIÇÃO | D2: ÁREA | F2: TEMPO DE | G2: INTENS. | H2: VAZÃO | I2: DECLIVI- | J2: TIPO DE CANALETA | K2: DIMENSÕES | M2: COMPRI-MENTO | N2: DIMENSIONAMENTO
D3: A | E3: C | F3: CONCEN- | G3: PLUVIO- | H3: Q | I3: DADE | K3: b | L3: h | N3: RUGOSIDADE | O3: ÁREA | P3: PERÍMETRO | Q3: RAIO | R3: VELOCIDADE | S3: LÂMINA | T3: RELAÇÃO | V3: H | W3: Qesc | X3: Qatingir
A4: INICIAL | B4: FINAL | C4: RELATIVA | F4: TRAÇÃO | G4: MÉTRICA | I4: I | M4: L | N4: DE MANNING | O4: MOLHADA | P4: MOLHADO | Q4: HIDRÁULICO | S4: Y | T4: Y/H | W4: Manning | X4: Racional
D5: ( ha ) | F5: tc ( min. ) | G5: i ( mm/min. ) | H5: ( m3/s ) | I5: ( m/m ) | K5: (m) | L5: (m) | M5: (m) | O5: ( m² ) | P5: (m) | Q5: (m) | R5: ( m/s ) | S5: ( m ) | V5: ( m) | W5: ( m³/s ) | X5: ( m³/s )
D6: 0.35 | E6: 0.9 | F6: 10 | G6: =(19.7523*(F6+20)^-0.7872)+(5.5111*(F6+20)^-0.7609)*(-0.4766+(-0.8977*(LN(LN(10/(10-1))))))+(0*(F6+0)^0)*(LN(10-0.5)) -> 1.997242969 | H6: =(((D6*E6))*G6)*0.16667 -> 0.104857353 | I6: 0.02 | J6: RD200V 30.0 | K6: =IFERROR((VLOOKUP(J6,Auxiliar!$E$4:$G$8,2,0)),"-") -> 0.2 | L6: =IFERROR((VLOOKUP(J6,Auxiliar!$E$4:$G$8,3,0)),"-") -> 0.5 | M6: 150 | N6: 0.0105 | O6: =IF(J6="RD150V 0.0",0.2697*S6^2+0.0819*S6-0.001,IF(J6="RD150V 10.0",0.0693*S6^2+0.1222*S6-0.0027,IF(J6="RD200V 0.0",0.3004*S6^2+0.1063*S6-0.0018,IF(J6="RD200V 20.0",0.0571*S6^2+0.1689*S6-0.005,IF(J6="RD200V 30.0",0.0571*S6^2+0.1689*S6-0.005,0))))) -> 0.04505412909 | P6: =IF(J6="RD150V 0.0",-1.3226*S6^2+2.3282*S6+0.0408,IF(J6="RD150V 10.0",-0.3626*S6^2+2.1349*S6+0.0491,IF(J6="RD200V 0.0",-1.2365*S6^2+2.4051*S6+0.05,IF(J6="RD200V 20.0",-0.2783*S6^2+2.1511*S6+0.0634,IF(J6="RD200V 30.0",-0.2783*S6^2+2.1511*S6+0.0634,0))))) -> 0.6267975722 | Q6: =IFERROR((O6/P6),"-") -> 0.07187987172 | R6: =IFERROR(((Q6^(2/3))*(I6^0.5))/N6,"-") -> 2.328433797 | S6: =V6 -> 0.2714440207 | T6: =IFERROR(S6/L6,"calcular") -> 0.5428880413 | V6: 0.2714440207 | W6: =IFERROR(R6*O6,"-") -> 0.1049055568 | X6: =H6 -> 0.104857353
E7: 0.9 | F7: 10 | G7: =(19.7523*(F7+20)^-0.7872)+(5.5111*(F7+20)^-0.7609)*(-0.4766+(-0.8977*(LN(LN(10/(10-1))))))+(0*(F7+0)^0)*(LN(10-0.5)) -> 1.997242969 | H7: =(((D7*E7))*G7)*0.16667 -> 0 | K7: =IFERROR((VLOOKUP(J7,Auxiliar!$E$4:$G$8,2,0)),"-") -> - | L7: =IFERROR((VLOOKUP(J7,Auxiliar!$E$4:$G$8,3,0)),"-") -> - | N7: 0.0105 | O7: =IF(J7="RD150V 0.0",0.2697*S7^2+0.0819*S7-0.001,IF(J7="RD150V 10.0",0.0693*S7^2+0.1222*S7-0.0027,IF(J7="RD200V 0.0",0.3004*S7^2+0.1063*S7-0.0018,IF(J7="RD200V 20.0",0.0571*S7^2+0.1689*S7-0.005,0)))) -> 0 | P7: =IF(J7="RD150V 0.0",-1.3226*S7^2+2.3282*S7+0.0408,IF(J7="RD150V 10.0",-0.3626*S7^2+2.1349*S7+0.0491,IF(J7="RD200V 0.0",-1.2365*S7^2+2.4051*S7+0.05,IF(J7="RD200V 20.0",-0.2783*S7^2+2.1511*S7+0.0634,0)))) -> 0 | Q7: =IFERROR((O7/P7),"-") -> - | R7: =IFERROR(((Q7^(2/3))*(I7^0.5))/N7,"-") -> - | S7: =V7 -> 0.6004691883 | T7: =IFERROR(S7/L7,"calcular") -> calcular | V7: 0.6004691883 | W7: =IFERROR(R7*O7,"-") -> - | X7: =H7 -> 0
E8: 0.9 | F8: 10 | G8: =(19.7523*(F8+20)^-0.7872)+(5.5111*(F8+20)^-0.7609)*(-0.4766+(-0.8977*(LN(LN(10/(10-1))))))+(0*(F8+0)^0)*(LN(10-0.5)) -> 1.997242969 | H8: =(((D8*E8))*G8)*0.16667 -> 0 | K8: =IFERROR((VLOOKUP(J8,Auxiliar!$E$4:$G$8,2,0)),"-") -> - | L8: =IFERROR((VLOOKUP(J8,Auxiliar!$E$4:$G$8,3,0)),"-") -> - | N8: 0.0105 | O8: =IF(J8="RD150V 0.0",0.2697*S8^2+0.0819*S8-0.001,IF(J8="RD150V 10.0",0.0693*S8^2+0.1222*S8-0.0027,IF(J8="RD200V 0.0",0.3004*S8^2+0.1063*S8-0.0018,IF(J8="RD200V 20.0",0.0571*S8^2+0.1689*S8-0.005,0)))) -> 0 | P8: =IF(J8="RD150V 0.0",-1.3226*S8^2+2.3282*S8+0.0408,IF(J8="RD150V 10.0",-0.3626*S8^2+2.1349*S8+0.0491,IF(J8="RD200V 0.0",-1.2365*S8^2+2.4051*S8+0.05,IF(J8="RD200V 20.0",-0.2783*S8^2+2.1511*S8+0.0634,0)))) -> 0 | Q8: =IFERROR((O8/P8),"-") -> - | R8: =IFERROR(((Q8^(2/3))*(I8^0.5))/N8,"-") -> - | S8: =V8 -> 0.2087482759 | T8: =IFERROR(S8/L8,"calcular") -> calcular | V8: 0.2087482759 | W8: =IFERROR(R8*O8,"-") -> - | X8: =H8 -> 0
E9: 0.9 | F9: 10 | G9: 1.997242969 | H9: 0 | K9: =IFERROR((VLOOKUP(J9,Auxiliar!$E$4:$G$8,2,0)),"-") -> - | L9: =IFERROR((VLOOKUP(J9,Auxiliar!$E$4:$G$8,3,0)),"-") -> - | N9: 0.0105 | O9: 0 | P9: 0 | Q9: =IFERROR((O9/P9),"-") -> - | R9: =IFERROR(((Q9^(2/3))*(I9^0.5))/N9,"-") -> - | S9: 0.3191178011 | T9: =IFERROR(S9/L9,"calcular") -> calcular | V9: 0.3191178011 | W9: =IFERROR(R9*O9,"-") -> - | X9: 0
E10: 0.9 | F10: 10 | G10: 1.997242969 | H10: 0 | K10: =IFERROR((VLOOKUP(J10,Auxiliar!$E$4:$G$8,2,0)),"-") -> - | L10: =IFERROR((VLOOKUP(J10,Auxiliar!$E$4:$G$8,3,0)),"-") -> - | N10: 0.0105 | O10: 0 | P10: 0 | Q10: - | R10: - | S10: 0.3054643223 | T10: calcular | V10: 0.3054643223 | W10: - | X10: 0
E11: 0.9 | F11: 10 | G11: 1.997242969 | H11: 0 | K11: =IFERROR((VLOOKUP(J11,Auxiliar!$E$4:$G$8,2,0)),"-") -> - | L11: =IFERROR((VLOOKUP(J11,Auxiliar!$E$4:$G$8,3,0)),"-") -> - | N11: 0.0105 | O11: 0 | P11: 0 | Q11: - | R11: - | S11: 0.2285219435 | T11: calcular | V11: 0.2285219435 | W11: - | X11: 0
E12: 0.9 | F12: 10 | G12: 1.997242969 | H12: 0 | K12: =IFERROR((VLOOKUP(J12,Auxiliar!$E$4:$G$8,2,0)),"-") -> - | L12: =IFERROR((VLOOKUP(J12,Auxiliar!$E$4:$G$8,3,0)),"-") -> - | N12: 0.0105 | O12: 0 | P12: 0 | Q12: - | R12: - | S12: 0.2218358202 | T12: calcular | V12: 0.2218358202 | W12: - | X12: 0
E13: 0.9 | F13: 10 | G13: 1.997242969 | H13: 0 | K13: =IFERROR((VLOOKUP(J13,Auxiliar!$E$4:$G$8,2,0)),"-") -> - | L13: =IFERROR((VLOOKUP(J13,Auxiliar!$E$4:$G$8,3,0)),"-") -> - | N13: 0.0105 | O13: 0 | P13: 0 | Q13: - | R13: - | S13: 0.1884345475 | T13: calcular | V13: 0.1884345475 | W13: - | X13: 0
E14: 0.9 | F14: 10 | G14: 1.997242969 | H14: 0 | K14: =IFERROR((VLOOKUP(J14,Auxiliar!$E$4:$G$8,2,0)),"-") -> - | L14: =IFERROR((VLOOKUP(J14,Auxiliar!$E$4:$G$8,3,0)),"-") -> - | N14: 0.0105 | O14: 0 | P14: 0 | Q14: - | R14: - | S14: 0.1786454842 | T14: calcular | V14: 0.1786454842 | W14: - | X14: 0
E15: 0.9 | F15: 10 | G15: 1.997242969 | H15: 0 | K15: =IFERROR((VLOOKUP(J15,Auxiliar!$E$4:$G$8,2,0)),"-") -> - | L15: =IFERROR((VLOOKUP(J15,Auxiliar!$E$4:$G$8,3,0)),"-") -> - | N15: 0.0105 | O15: 0 | P15: 0 | Q15: - | R15: - | S15: 0.1815496819 | T15: calcular | V15: 0.1815496819 | W15: - | X15: 0
E16: 0.9 | F16: 10 | G16: 1.997242969 | H16: 0 | K16: =IFERROR((VLOOKUP(J16,Auxiliar!$E$4:$G$8,2,0)),"-") -> - | L16: =IFERROR((VLOOKUP(J16,Auxiliar!$E$4:$G$8,3,0)),"-") -> - | N16: 0.0105 | O16: 0 | P16: 0 | Q16: - | R16: - | S16: 0.2683836587 | T16: calcular | V16: 0.2683836587 | W16: - | X16: 0
E17: 0.9 | F17: 10 | G17: =(19.7523*(F17+20)^-0.7872)+(5.5111*(F17+20)^-0.7609)*(-0.4766+(-0.8977*(LN(LN(10/(10-1))))))+(0*(F17+0)^0)*(LN(10-0.5)) -> 1.997242969 | H17: =(((D17*E17))*G17)*0.16667 -> 0 | K17: =IFERROR((VLOOKUP(J17,Auxiliar!$E$4:$G$8,2,0)),"-") -> - | L17: =IFERROR((VLOOKUP(J17,Auxiliar!$E$4:$G$8,3,0)),"-") -> - | N17: 0.0105 | O17: 0 | P17: 0 | Q17: - | R17: - | S17: 0.01 | T17: calcular | V17: 0.01 | W17: - | X17: 0
E18: 0.9 | F18: 10 | G18: 1.997242969 | H18: 0 | K18: =IFERROR((VLOOKUP(J18,Auxiliar!$E$4:$G$8,2,0)),"-") -> - | L18: =IFERROR((VLOOKUP(J18,Auxiliar!$E$4:$G$8,3,0)),"-") -> - | N18: 0.0105 | O18: 0 | P18: 0 | Q18: - | R18: - | S18: 0.01 | T18: calcular | V18: 0.01 | W18: - | X18: 0
E19: 0.9 | F19: 10 | G19: 1.997242969 | H19: 0 | K19: =IFERROR((VLOOKUP(J19,Auxiliar!$E$4:$G$8,2,0)),"-") -> - | L19: =IFERROR((VLOOKUP(J19,Auxiliar!$E$4:$G$8,3,0)),"-") -> - | N19: 0.0105 | O19: 0 | P19: 0 | Q19: - | R19: - | S19: 0.01 | T19: calcular | V19: 0.01 | W19: - | X19: 0
E20: 0.9 | F20: 10 | G20: 1.997242969 | H20: 0 | K20: =IFERROR((VLOOKUP(J20,Auxiliar!$E$4:$G$8,2,0)),"-") -> - | L20: =IFERROR((VLOOKUP(J20,Auxiliar!$E$4:$G$8,3,0)),"-") -> - | N20: 0.0105 | O20: 0 | P20: 0 | Q20: - | R20: - | S20: 0.01 | T20: calcular | V20: 0.01 | W20: - | X20: 0
E21: 0.9 | F21: 10 | G21: 1.997242969 | H21: 0 | K21: =IFERROR((VLOOKUP(J21,Auxiliar!$E$4:$G$8,2,0)),"-") -> - | L21: =IFERROR((VLOOKUP(J21,Auxiliar!$E$4:$G$8,3,0)),"-") -> - | N21: 0.0105 | O21: 0 | P21: 0 | Q21: - | R21: - | S21: 0.01 | T21: calcular | V21: 0.01 | W21: - | X21: 0
E22: 0.9 | F22: 10 | G22: 1.997242969 | H22: 0 | K22: =IFERROR((VLOOKUP(J22,Auxiliar!$E$4:$G$8,2,0)),"-") -> - | L22: =IFERROR((VLOOKUP(J22,Auxiliar!$E$4:$G$8,3,0)),"-") -> - | N22: 0.0105 | O22: 0 | P22: 0 | Q22: - | R22: - | S22: 0.01 | T22: calcular | V22: 0.01 | W22: - | X22: 0
E23: 0.9 | F23: 10 | G23: 1.997242969 | H23: 0 | K23: =IFERROR((VLOOKUP(J23,Auxiliar!$E$4:$G$8,2,0)),"-") -> - | L23: =IFERROR((VLOOKUP(J23,Auxiliar!$E$4:$G$8,3,0)),"-") -> - | N23: 0.0105 | O23: 0 | P23: 0 | Q23: - | R23: - | S23: 0.01 | T23: calcular | V23: 0.01 | W23: - | X23: 0
E24: 0.9 | F24: 10 | G24: 1.997242969 | H24: 0 | K24: =IFERROR((VLOOKUP(J24,Auxiliar!$E$4:$G$8,2,0)),"-") -> - | L24: =IFERROR((VLOOKUP(J24,Auxiliar!$E$4:$G$8,3,0)),"-") -> - | N24: 0.0105 | O24: 0 | P24: 0 | Q24: - | R24: - | S24: 0.01 | T24: calcular | V24: 0.01 | W24: - | X24: 0
E25: 0.9 | F25: 10 | G25: 1.997242969 | H25: 0 | K25: =IFERROR((VLOOKUP(J25,Auxiliar!$E$4:$G$8,2,0)),"-") -> - | L25: =IFERROR((VLOOKUP(J25,Auxiliar!$E$4:$G$8,3,0)),"-") -> - | N25: 0.0105 | O25: 0 | P25: 0 | Q25: - | R25: - | S25: 0.01 | T25: calcular | V25: 0.01 | W25: - | X25: 0
E26: 0.9 | F26: 10 | G26: 1.997242969 | H26: 0 | K26: =IFERROR((VLOOKUP(J26,Auxiliar!$E$4:$G$8,2,0)),"-") -> - | L26: =IFERROR((VLOOKUP(J26,Auxiliar!$E$4:$G$8,3,0)),"-") -> - | N26: 0.0105 | O26: 0 | P26: 0 | Q26: - | R26: - | S26: 0.01 | T26: calcular | V26: 0.01 | W26: - | X26: 0
E27: 0.9 | F27: 10 | G27: 1.997242969 | H27: 0 | K27: =IFERROR((VLOOKUP(J27,Auxiliar!$E$4:$G$8,2,0)),"-") -> - | L27: =IFERROR((VLOOKUP(J27,Auxiliar!$E$4:$G$8,3,0)),"-") -> - | N27: 0.0105 | O27: 0 | P27: 0 | Q27: - | R27: - | S27: 0.01 | T27: calcular | V27: 0.01 | W27: - | X27: 0
E28: 0.9 | F28: 10 | G28: 1.997242969 | H28: 0 | K28: =IFERROR((VLOOKUP(J28,Auxiliar!$E$4:$G$8,2,0)),"-") -> - | L28: =IFERROR((VLOOKUP(J28,Auxiliar!$E$4:$G$8,3,0)),"-") -> - | N28: 0.0105 | O28: 0 | P28: 0 | Q28: - | R28: - | S28: 0.01 | T28: calcular | V28: 0.01 | W28: - | X28: 0
E29: 0.9 | F29: 10 | G29: 1.997242969 | H29: 0 | K29: =IFERROR((VLOOKUP(J29,Auxiliar!$E$4:$G$8,2,0)),"-") -> - | L29: =IFERROR((VLOOKUP(J29,Auxiliar!$E$4:$G$8,3,0)),"-") -> - | N29: 0.0105 | O29: 0 | P29: 0 | Q29: - | R29: - | S29: 0.01 | T29: calcular | V29: 0.01 | W29: - | X29: 0
E30: 0.9 | F30: 10 | G30: 1.997242969 | H30: 0 | K30: =IFERROR((VLOOKUP(J30,Auxiliar!$E$4:$G$8,2,0)),"-") -> - | L30: =IFERROR((VLOOKUP(J30,Auxiliar!$E$4:$G$8,3,0)),"-") -> - | N30: 0.0105 | O30: 0 | P30: 0 | Q30: - | R30: - | S30: 0.01 | T30: calcular | V30: 0.01 | W30: - | X30: 0
E31: 0.9 | F31: 10 | G31: 1.997242969 | H31: 0 | K31: =IFERROR((VLOOKUP(J31,Auxiliar!$E$4:$G$8,2,0)),"-") -> - | L31: =IFERROR((VLOOKUP(J31,Auxiliar!$E$4:$G$8,3,0)),"-") -> - | N31: 0.0105 | O31: 0 | P31: 0 | Q31: - | R31: - | S31: 0.01 | T31: calcular | V31: 0.01 | W31: - | X31: 0
E32: 0.9 | F32: 10 | G32: 1.997242969 | H32: 0 | K32: =IFERROR((VLOOKUP(J32,Auxiliar!$E$4:$G$8,2,0)),"-") -> - | L32: =IFERROR((VLOOKUP(J32,Auxiliar!$E$4:$G$8,3,0)),"-") -> - | N32: 0.0105 | O32: 0 | P32: 0 | Q32: - | R32: - | S32: 0.01 | T32: calcular | V32: 0.01 | W32: - | X32: 0
E33: 0.9 | F33: 10 | G33: 1.997242969 | H33: 0 | K33: =IFERROR((VLOOKUP(J33,Auxiliar!$E$4:$G$8,2,0)),"-") -> - | L33: =IFERROR((VLOOKUP(J33,Auxiliar!$E$4:$G$8,3,0)),"-") -> - | N33: 0.0105 | O33: 0 | P33: 0 | Q33: - | R33: - | S33: 0.01 | T33: calcular | V33: 0.01 | W33: - | X33: 0
E34: 0.9 | F34: 10 | G34: 1.997242969 | H34: 0 | K34: =IFERROR((VLOOKUP(J34,Auxiliar!$E$4:$G$8,2,0)),"-") -> - | L34: =IFERROR((VLOOKUP(J34,Auxiliar!$E$4:$G$8,3,0)),"-") -> - | N34: 0.0105 | O34: 0 | P34: 0 | Q34: - | R34: - | S34: 0.01 | T34: calcular | V34: 0.01 | W34: - | X34: 0

Sheet Auxiliar
E3: Canal ACO Monoblock | F3: Base | G3: Hútil | H3: Descrição DNIT
E4: RD150V 0.0 | F4: 0.15 | G4: =0.155 -> 0.155 | H4: CANAL/GRELHA MONOBLOCO DE CONCRETO POLÍMERO 21X28,0
E5: RD150V 10.0 | F5: 0.15 | G5: 0.255 | H5: CANAL/GRELHA MONOBLOCO DE CONCRETO POLÍMERO 21X38,0
E6: RD200V 0.0 | F6: 0.2 | G6: 0.2 | H6: CANAL/GRELHA MONOBLOCO DE CONCRETO POLÍMERO 26X33,0
E7: RD200V 20.0 | F7: 0.2 | G7: 0.4 | H7: CANAL/GRELHA MONOBLOCO DE CONCRETO POLÍMERO 26X53,0
E8: RD200V 30.0 | F8: 0.2 | G8: 0.5 | H8: CANAL/GRELHA MONOBLOCO DE CONCRETO POLÍMERO 26X63,0 | I8: ainda não esta no Álbum do DNIT
